[Event "*** Titled Tuesday Blitz"]
[Site "Chess.com"]
[Date "2021.03.09"]
[Round "2"]
[White "Kostukov_Alex"]
[Black "Witik"]
[Result "0-1"]
[WhiteElo "2319"]
[BlackElo "2609"]
[TimeControl "180+1"]
[EndTime "10:19:34 PST"]
[Termination "Witik won on time"]

1. g3 {[%clk 0:03:00.9]} 1... e5 {[%clk 0:02:59.7]} 2. c4 {[%clk 0:03:00]} 2...
c6 {[%clk 0:02:55.7]} 3. Bg2 {[%clk 0:02:59.9]} 3... d5 {[%clk 0:02:55.4]} 4.
cxd5 {[%clk 0:03:00.1]} 4... cxd5 {[%clk 0:02:56]} 5. d4 {[%clk 0:03:00.1]} 5...
e4 {[%clk 0:02:54.4]} 6. Nc3 {[%clk 0:02:59.4]} 6... Nc6 {[%clk 0:02:53.5]} 7.
Nh3 {[%clk 0:02:55.6]} 7... h6 {[%clk 0:02:51.7]} 8. O-O {[%clk 0:02:54.8]} 8...
Nf6 {[%clk 0:02:50]} 9. f3 {[%clk 0:02:45.2]} 9... exf3 {[%clk 0:02:48.6]} 10.
exf3 {[%clk 0:02:42.7]} 10... Be7 {[%clk 0:02:46.8]} 11. Be3 {[%clk 0:02:31.7]}
11... O-O {[%clk 0:02:44.6]} 12. Qd2 {[%clk 0:02:20.3]} 12... Re8 {[%clk
0:02:43]} 13. Rae1 {[%clk 0:02:15.4]} 13... Bf8 {[%clk 0:02:40.7]} 14. Nf4
{[%clk 0:02:02.4]} 14... b6 {[%clk 0:02:22.4]} 15. Nd3 {[%clk 0:01:49.6]} 15...
Ba6 {[%clk 0:02:19.7]} 16. a3 {[%clk 0:01:42]} 16... Na5 {[%clk 0:02:13.4]} 17.
Bf2 {[%clk 0:01:24.8]} 17... Nc4 {[%clk 0:01:59.1]} 18. Qd1 {[%clk 0:01:09.6]}
18... Qd6 {[%clk 0:01:48.4]} 19. f4 {[%clk 0:00:58.8]} 19... Red8 {[%clk
0:01:10.6]} 20. Qb1 {[%clk 0:00:57.7]} 20... Nd2 {[%clk 0:01:09]} 21. Qc2 {[%clk
0:00:56.7]} 21... Nxf1 {[%clk 0:01:08]} 22. Bxf1 {[%clk 0:00:57.6]} 22... Rac8
{[%clk 0:00:46]} 23. Bg2 {[%clk 0:00:54.7]} 23... Ne4 {[%clk 0:00:43.7]} 24. Nb4
{[%clk 0:00:49.8]} 24... Nxc3 {[%clk 0:00:27.3]} 25. bxc3 {[%clk 0:00:28]} 25...
Bb7 {[%clk 0:00:17.3]} 26. Bh3 {[%clk 0:00:22.5]} 26... Rc7 {[%clk 0:00:14.7]}
27. Re2 {[%clk 0:00:18.7]} 27... a5 {[%clk 0:00:14.5]} 28. Nd3 {[%clk
0:00:17.4]} 28... Qxa3 {[%clk 0:00:14.7]} 29. Ne5 {[%clk 0:00:16.9]} 29... Qxc3
{[%clk 0:00:14]} 30. Qf5 {[%clk 0:00:16.6]} 30... Bc8 {[%clk 0:00:12.2]} 31. Qh5
{[%clk 0:00:11.7]} 31... Bxh3 {[%clk 0:00:10.4]} 32. Qxh3 {[%clk 0:00:11.6]}
32... a4 {[%clk 0:00:10]} 33. f5 {[%clk 0:00:08.3]} 33... Qc1+ {[%clk
0:00:06.3]} 34. Kg2 {[%clk 0:00:07.6]} 34... Qg5 {[%clk 0:00:07]} 35. Be3 {[%clk
0:00:04.8]} 35... Qf6 {[%clk 0:00:06]} 36. g4 {[%clk 0:00:05.2]} 36... a3 {[%clk
0:00:05]} 37. g5 {[%clk 0:00:03.9]} 37... hxg5 {[%clk 0:00:05.1]} 38. Qh5 {[%clk
0:00:03.7]} 38... Qxf5 {[%clk 0:00:03.4]} 39. h3 {[%clk 0:00:03.4]} 39... Qe4+
{[%clk 0:00:03.1]} 40. Nf3 {[%clk 0:00:03.5]} 40... Qh7 {[%clk 0:00:03.3]} 41.
Kf2 {[%clk 0:00:03.7]} 41... Qxh5 {[%clk 0:00:03.3]} 42. h4 {[%clk 0:00:03.7]}
42... g4 {[%clk 0:00:03.5]} 0-1

[Event "*** Titled Tuesday Blitz"]
[Site "Chess.com"]
[Date "2021.03.09"]
[Round "2"]
[White "maxip32"]
[Black "Tooweak2slow03"]
[Result "0-1"]
[WhiteElo "2516"]
[BlackElo "2768"]
[TimeControl "180+1"]
[EndTime "10:19:35 PST"]
[Termination "Tooweak2slow03 won on time"]

1. e4 {[%clk 0:03:00.9]} 1... c6 {[%clk 0:02:55.1]} 2. d4 {[%clk 0:03:00.4]}
2... g6 {[%clk 0:02:53.6]} 3. Nc3 {[%clk 0:02:58.4]} 3... Nf6 {[%clk 0:02:51.5]}
4. Nf3 {[%clk 0:02:54.6]} 4... Bg7 {[%clk 0:02:49]} 5. h3 {[%clk 0:02:52.3]}
5... d5 {[%clk 0:02:49]} 6. Bd3 {[%clk 0:02:50.8]} 6... dxe4 {[%clk 0:02:47.1]}
7. Nxe4 {[%clk 0:02:51.7]} 7... Nxe4 {[%clk 0:02:44.9]} 8. Bxe4 {[%clk
0:02:52.6]} 8... Nd7 {[%clk 0:02:45.6]} 9. O-O {[%clk 0:02:50.3]} 9... c5 {[%clk
0:02:43.3]} 10. dxc5 {[%clk 0:02:06.8]} 10... Qc7 {[%clk 0:02:42.1]} 11. c3
{[%clk 0:01:55.8]} 11... O-O {[%clk 0:02:32.3]} 12. Qe2 {[%clk 0:01:41.7]} 12...
Nxc5 {[%clk 0:02:17.9]} 13. Bc2 {[%clk 0:01:39.8]} 13... e5 {[%clk 0:02:12.4]}
14. Re1 {[%clk 0:01:34]} 14... f6 {[%clk 0:02:05.7]} 15. b4 {[%clk 0:01:28.1]}
15... Ne6 {[%clk 0:02:04.4]} 16. Bd2 {[%clk 0:01:13.7]} 16... b6 {[%clk
0:02:01.5]} 17. Bb3 {[%clk 0:01:12.5]} 17... Kh8 {[%clk 0:01:55.2]} 18. Rac1
{[%clk 0:01:07]} 18... a5 {[%clk 0:01:49.7]} 19. a3 {[%clk 0:01:05.9]} 19... Ra7
{[%clk 0:01:37]} 20. Be3 {[%clk 0:01:03.5]} 20... Qb8 {[%clk 0:01:34]} 21. Red1
{[%clk 0:00:53.3]} 21... Re7 {[%clk 0:01:30.2]} 22. Qd2 {[%clk 0:00:50.8]} 22...
f5 {[%clk 0:01:23.3]} 23. Qd6 {[%clk 0:00:48.9]} 23... Qxd6 {[%clk 0:01:20.8]}
24. Rxd6 {[%clk 0:00:49.8]} 24... e4 {[%clk 0:01:19.7]} 25. Bxe6 {[%clk
0:00:26.5]} 25... Rxe6 {[%clk 0:01:14.7]} 26. Rxe6 {[%clk 0:00:26]} 26... Bxe6
{[%clk 0:01:15.6]} 27. Nd4 {[%clk 0:00:18.4]} 27... Bc4 {[%clk 0:01:15.9]} 28.
Nc6 {[%clk 0:00:17.2]} 28... axb4 {[%clk 0:01:13]} 29. axb4 {[%clk 0:00:15.8]}
29... b5 {[%clk 0:01:11.3]} 30. Na5 {[%clk 0:00:15.3]} 30... f4 {[%clk
0:01:06.1]} 31. Bd4 {[%clk 0:00:15.4]} 31... Bxd4 {[%clk 0:00:59.4]} 32. cxd4
{[%clk 0:00:16.3]} 32... Bd3 {[%clk 0:01:00.3]} 33. Nc6 {[%clk 0:00:13.1]} 33...
Kg7 {[%clk 0:00:58]} 34. d5 {[%clk 0:00:13.3]} 34... e3 {[%clk 0:00:54.4]} 35.
d6 {[%clk 0:00:11.9]} 35... Bf5 {[%clk 0:00:53]} 36. fxe3 {[%clk 0:00:10.9]}
36... fxe3 {[%clk 0:00:52]} 37. Re1 {[%clk 0:00:11.3]} 37... Rf6 {[%clk
0:00:49]} 38. Nd4 {[%clk 0:00:04.2]} 38... Rxd6 {[%clk 0:00:46.6]} 39. Nxb5
{[%clk 0:00:04.3]} 39... Rd3 {[%clk 0:00:44.1]} 40. Kf1 {[%clk 0:00:02.5]} 40...
Rd7 {[%clk 0:00:29.7]} 41. Nc3 {[%clk 0:00:01.8]} 41... Rd3 {[%clk 0:00:27.9]}
42. Nb5 {[%clk 0:00:01.8]} 42... Be4 {[%clk 0:00:24]} 43. Ke2 {[%clk 0:00:01.2]}
43... Rb3 {[%clk 0:00:23.4]} 44. Nd6 {[%clk 0:00:01.2]} 44... Bxg2 {[%clk
0:00:20.8]} 45. h4 {[%clk 0:00:01.7]} 45... Kh6 {[%clk 0:00:18.8]} 46. Rg1
{[%clk 0:00:01.5]} 46... Bh3 {[%clk 0:00:18.1]} 47. Rg3 {[%clk 0:00:01.7]} 47...
Bf1+ {[%clk 0:00:14.9]} 0-1

[Event "*** Titled Tuesday Blitz"]
[Site "Chess.com"]
[Date "2021.03.09"]
[Round "2"]
[White "BJthechessgod"]
[Black "Fandorin779"]
[Result "0-1"]
[WhiteElo "2287"]
[BlackElo "2509"]
[TimeControl "180+1"]
[EndTime "10:19:35 PST"]
[Termination "Fandorin779 won by resignation"]

1. e4 {[%clk 0:03:00.9]} 1... Nf6 {[%clk 0:02:58.2]} 2. e5 {[%clk 0:03:00.4]}
2... Ng8 {[%clk 0:02:58.3]} 3. d4 {[%clk 0:02:54]} 3... d6 {[%clk 0:02:58.3]} 4.
Nf3 {[%clk 0:02:53.5]} 4... dxe5 {[%clk 0:02:57.4]} 5. Nxe5 {[%clk 0:02:54.4]}
5... Nf6 {[%clk 0:02:56.8]} 6. Bc4 {[%clk 0:02:43.5]} 6... e6 {[%clk 0:02:55.4]}
7. O-O {[%clk 0:02:41.9]} 7... Nbd7 {[%clk 0:02:52]} 8. Bg5 {[%clk 0:02:39.4]}
8... Be7 {[%clk 0:02:49.9]} 9. Nc3 {[%clk 0:02:21.5]} 9... O-O {[%clk
0:02:47.6]} 10. Re1 {[%clk 0:02:14]} 10... Nb6 {[%clk 0:02:46.7]} 11. Bd3 {[%clk
0:02:12.7]} 11... h6 {[%clk 0:02:38.2]} 12. Bh4 {[%clk 0:02:04.4]} 12... Nbd5
{[%clk 0:02:34.7]} 13. Nxd5 {[%clk 0:01:41.1]} 13... Nxd5 {[%clk 0:02:31]} 14.
Bg3 {[%clk 0:01:42]} 14... Bf6 {[%clk 0:02:08.5]} 15. Qh5 {[%clk 0:01:34.6]}
15... c6 {[%clk 0:01:58.7]} 16. Ng4 {[%clk 0:01:30.4]} 16... Bxd4 {[%clk
0:01:46.3]} 17. c3 {[%clk 0:01:09.6]} 17... Nf6 {[%clk 0:01:42.4]} 18. Nxf6+
{[%clk 0:01:02.2]} 18... Bxf6 {[%clk 0:01:35.7]} 19. Rad1 {[%clk 0:01:02.8]}
19... Qb6 {[%clk 0:01:27.5]} 20. Bd6 {[%clk 0:00:54.7]} 20... Re8 {[%clk
0:01:21.1]} 21. Rd2 {[%clk 0:00:42.2]} 21... Bd7 {[%clk 0:01:07.4]} 22. Bb4
{[%clk 0:00:26.4]} 22... a5 {[%clk 0:01:01.6]} 23. Bb1 {[%clk 0:00:18.4]} 23...
axb4 {[%clk 0:00:43.8]} 24. Rxd7 {[%clk 0:00:17.7]} 24... Re7 {[%clk 0:00:42]}
25. Red1 {[%clk 0:00:09.9]} 25... bxc3 {[%clk 0:00:39.3]} 26. b3 {[%clk
0:00:09.6]} 26... Qa5 {[%clk 0:00:13.8]} 27. h3 {[%clk 0:00:08]} 27... g6 {[%clk
0:00:07]} 28. Qxh6 {[%clk 0:00:07.6]} 28... Bg7 {[%clk 0:00:04.8]} 29. Qh4
{[%clk 0:00:06.7]} 29... Rxd7 {[%clk 0:00:04.9]} 30. Rxd7 {[%clk 0:00:06.7]}
30... c2 {[%clk 0:00:05.8]} 31. Bxc2 {[%clk 0:00:06.5]} 31... Qxa2 {[%clk
0:00:06.7]} 32. Qe4 {[%clk 0:00:04.3]} 32... Qa1+ {[%clk 0:00:06.9]} 33. Kh2
{[%clk 0:00:04.1]} 33... Qe5+ {[%clk 0:00:06.4]} 34. Qxe5 {[%clk 0:00:03.6]}
34... Bxe5+ {[%clk 0:00:07.3]} 35. g3 {[%clk 0:00:03.8]} 35... Ra2 {[%clk
0:00:07.9]} 36. f4 {[%clk 0:00:04.1]} 36... Rxc2+ {[%clk 0:00:07.7]} 37. Kh1
{[%clk 0:00:04.4]} 37... Bf6 {[%clk 0:00:07.1]} 38. Rxb7 {[%clk 0:00:04.9]}
38... Rc3 {[%clk 0:00:07.4]} 39. Rc7 {[%clk 0:00:05.2]} 39... Rxb3 {[%clk
0:00:07.3]} 40. Rxc6 {[%clk 0:00:06.1]} 40... Rxg3 {[%clk 0:00:08]} 41. Kh2
{[%clk 0:00:06.6]} 41... Rf3 {[%clk 0:00:07.8]} 42. Kg2 {[%clk 0:00:07]} 42...
Rxf4 {[%clk 0:00:08.1]} 43. Kg3 {[%clk 0:00:07.2]} 43... Rd4 {[%clk 0:00:08.4]}
44. Rc8+ {[%clk 0:00:07.3]} 44... Kg7 {[%clk 0:00:08.4]} 45. Rc7 {[%clk
0:00:08.2]} 45... e5 {[%clk 0:00:08.3]} 46. Kf3 {[%clk 0:00:08.2]} 46... e4+
{[%clk 0:00:08.8]} 47. Ke3 {[%clk 0:00:09.1]} 47... Ra4 {[%clk 0:00:08.8]} 48.
Rc5 {[%clk 0:00:07.9]} 48... Bd4+ {[%clk 0:00:08.7]} 0-1

[Event "*** Titled Tuesday Blitz"]
[Site "Chess.com"]
[Date "2021.03.09"]
[Round "2"]
[White "bylavochka"]
[Black "PowerThinking2650"]
[Result "0-1"]
[WhiteElo "2203"]
[BlackElo "2442"]
[TimeControl "180+1"]
[EndTime "10:19:35 PST"]
[Termination "PowerThinking2650 won on time"]

1. e4 {[%clk 0:03:00.9]} 1... e5 {[%clk 0:02:55]} 2. Nc3 {[%clk 0:03:00.5]} 2...
Nf6 {[%clk 0:02:54.4]} 3. g3 {[%clk 0:02:58.6]} 3... d5 {[%clk 0:02:52.4]} 4.
exd5 {[%clk 0:02:58]} 4... Nxd5 {[%clk 0:02:53.3]} 5. Bg2 {[%clk 0:02:58]} 5...
Nxc3 {[%clk 0:02:52.8]} 6. bxc3 {[%clk 0:02:58.9]} 6... Nc6 {[%clk 0:02:52.8]}
7. Ne2 {[%clk 0:02:56]} 7... Bg4 {[%clk 0:02:44.1]} 8. d3 {[%clk 0:02:54.2]}
8... Qd7 {[%clk 0:02:42.3]} 9. Be3 {[%clk 0:02:52.6]} 9... Bd6 {[%clk
0:02:23.8]} 10. Qd2 {[%clk 0:02:47.3]} 10... O-O {[%clk 0:02:22.4]} 11. O-O
{[%clk 0:02:42.6]} 11... Bh3 {[%clk 0:02:20.5]} 12. f4 {[%clk 0:02:42.1]} 12...
Bxg2 {[%clk 0:02:18.7]} 13. Kxg2 {[%clk 0:02:43]} 13... Rae8 {[%clk 0:02:15.8]}
14. Rae1 {[%clk 0:02:38.4]} 14... e4 {[%clk 0:01:53.3]} 15. Nd4 {[%clk
0:02:28.2]} 15... f5 {[%clk 0:01:45.4]} 16. h3 {[%clk 0:01:59.5]} 16... Nxd4
{[%clk 0:01:29]} 17. Bxd4 {[%clk 0:01:57.9]} 17... Qc6 {[%clk 0:01:21]} 18. Kh2
{[%clk 0:01:47.5]} 18... Re6 {[%clk 0:01:07.1]} 19. dxe4 {[%clk 0:01:29.4]}
19... Rxe4 {[%clk 0:01:05.7]} 20. Rxe4 {[%clk 0:01:21.9]} 20... fxe4 {[%clk
0:01:05.1]} 21. f5 {[%clk 0:01:13.1]} 21... Bc5 {[%clk 0:00:50.8]} 22. Be5
{[%clk 0:00:26.8]} 22... e3 {[%clk 0:00:46.7]} 23. Qd3 {[%clk 0:00:19.8]} 23...
Re8 {[%clk 0:00:40.4]} 24. f6 {[%clk 0:00:19.6]} 24... gxf6 {[%clk 0:00:33.1]}
25. Rxf6 {[%clk 0:00:11.4]} 25... Bd6 {[%clk 0:00:22.1]} 26. Bxd6 {[%clk
0:00:03.6]} 26... e2 {[%clk 0:00:11.5]} 27. Qf5 {[%clk 0:00:02.4]} 27... Qxd6
{[%clk 0:00:06.1]} 28. Rxd6 {[%clk 0:00:02.1]} 28... cxd6 {[%clk 0:00:06.1]} 29.
Qg5+ {[%clk 0:00:02.6]} 29... Kf7 {[%clk 0:00:05.9]} 30. Qf5+ {[%clk 0:00:03]}
30... Ke7 {[%clk 0:00:05.2]} 31. Qg5+ {[%clk 0:00:02.6]} 31... Kd7 {[%clk
0:00:05]} 32. Qf5+ {[%clk 0:00:03]} 32... Re6 {[%clk 0:00:03.7]} 33. Qf7+ {[%clk
0:00:01.7]} 33... Re7 {[%clk 0:00:03.7]} 34. Qf5+ {[%clk 0:00:02.1]} 34... Kc7
{[%clk 0:00:03.8]} 35. Qa5+ {[%clk 0:00:01.3]} 35... b6 {[%clk 0:00:02.6]} 36.
Qxa7+ {[%clk 0:00:01.3]} 36... Kd8 {[%clk 0:00:02.8]} 37. Qb8+ {[%clk
0:00:01.4]} 37... Kd7 {[%clk 0:00:02.9]} 38. Qb7+ {[%clk 0:00:01.8]} 38... Ke6
{[%clk 0:00:02.8]} 39. Qe4+ {[%clk 0:00:01.8]} 39... Kf7 {[%clk 0:00:02.9]} 40.
Qf5+ {[%clk 0:00:02]} 40... Kg7 {[%clk 0:00:02.6]} 41. Qg5+ {[%clk 0:00:02.3]}
41... Kf8 {[%clk 0:00:03.5]} 42. Qf6+ {[%clk 0:00:01.8]} 42... Ke8 {[%clk
0:00:04.4]} 0-1

[Event "*** Titled Tuesday Blitz"]
[Site "Chess.com"]
[Date "2021.03.09"]
[Round "2"]
[White "lindsay790"]
[Black "Orest_Vovk"]
[Result "0-1"]
[WhiteElo "2195"]
[BlackElo "2434"]
[TimeControl "180+1"]
[EndTime "10:19:35 PST"]
[Termination "Orest_Vovk won by resignation"]

1. e4 {[%clk 0:03:00.9]} 1... Nc6 {[%clk 0:02:52.3]} 2. d4 {[%clk 0:03:00.1]}
2... e5 {[%clk 0:02:42.4]} 3. d5 {[%clk 0:02:58.8]} 3... Nce7 {[%clk 0:02:42.5]}
4. c4 {[%clk 0:02:58.8]} 4... Ng6 {[%clk 0:02:42.5]} 5. Nc3 {[%clk 0:02:58.4]}
5... Bc5 {[%clk 0:02:42.5]} 6. Nf3 {[%clk 0:02:53.7]} 6... Nf6 {[%clk
0:02:42.4]} 7. h3 {[%clk 0:02:45.9]} 7... d6 {[%clk 0:02:41.7]} 8. a3 {[%clk
0:02:43.1]} 8... a6 {[%clk 0:02:41.3]} 9. Bd3 {[%clk 0:02:38.9]} 9... O-O {[%clk
0:02:40.9]} 10. O-O {[%clk 0:02:38.7]} 10... Nh5 {[%clk 0:02:36.6]} 11. Ne2
{[%clk 0:02:29.3]} 11... Nh4 {[%clk 0:02:29.4]} 12. Nh2 {[%clk 0:01:49.1]} 12...
Qf6 {[%clk 0:02:11.5]} 13. Be3 {[%clk 0:01:28.1]} 13... Qg6 {[%clk 0:02:05.6]}
14. g4 {[%clk 0:01:16.2]} 14... Bxe3 {[%clk 0:01:36.9]} 15. fxe3 {[%clk
0:01:14.5]} 15... Qg5 {[%clk 0:01:37.1]} 16. Kf2 {[%clk 0:00:38.9]} 16... Nf6
{[%clk 0:01:23]} 17. Ng3 {[%clk 0:00:33]} 17... h5 {[%clk 0:01:17.3]} 18. Nf5
{[%clk 0:00:27.6]} 18... Bxf5 {[%clk 0:01:07.6]} 19. exf5 {[%clk 0:00:25.6]}
19... e4 {[%clk 0:01:07.3]} 20. Be2 {[%clk 0:00:25.4]} 20... Nd7 {[%clk
0:01:01.7]} 21. Rg1 {[%clk 0:00:22.1]} 21... Ne5 {[%clk 0:00:59.9]} 22. Qf1
{[%clk 0:00:10.6]} 22... Rae8 {[%clk 0:00:55.4]} 23. Rg3 {[%clk 0:00:10.2]}
23... Nd3+ {[%clk 0:00:44.8]} 24. Kg1 {[%clk 0:00:08.8]} 24... Nxb2 {[%clk
0:00:40.8]} 25. Qf4 {[%clk 0:00:08.4]} 25... Qxf4 {[%clk 0:00:39.5]} 26. exf4
{[%clk 0:00:08.6]} 26... Nd3 {[%clk 0:00:32.7]} 27. Bxd3 {[%clk 0:00:07.5]}
27... exd3 {[%clk 0:00:33.6]} 28. Rxd3 {[%clk 0:00:07.7]} 28... Re4 {[%clk
0:00:33.4]} 29. Rf1 {[%clk 0:00:06.2]} 29... Rxc4 {[%clk 0:00:32.6]} 30. g5
{[%clk 0:00:05.3]} 30... Nxf5 {[%clk 0:00:31.9]} 31. Rdf3 {[%clk 0:00:04.9]}
31... Re8 {[%clk 0:00:31.8]} 32. Kf2 {[%clk 0:00:05.3]} 32... Rc2+ {[%clk
0:00:31.2]} 33. Kg1 {[%clk 0:00:05.8]} 33... Ree2 {[%clk 0:00:31.1]} 34. R3f2
{[%clk 0:00:05.6]} 34... Ng3 {[%clk 0:00:30]} 35. Rxe2 {[%clk 0:00:05.6]} 35...
Rxe2 {[%clk 0:00:30]} 36. Rf2 {[%clk 0:00:06]} 36... Re1+ {[%clk 0:00:29.2]} 37.
Kg2 {[%clk 0:00:06.5]} 37... Nf5 {[%clk 0:00:28.2]} 38. Rf3 {[%clk 0:00:07]}
38... Nh4+ {[%clk 0:00:27.4]} 39. Kg3 {[%clk 0:00:06.8]} 39... Nxf3 {[%clk
0:00:27.2]} 40. Nxf3 {[%clk 0:00:07.5]} 40... Re3 {[%clk 0:00:27.3]} 41. Kf2
{[%clk 0:00:08]} 41... Rxf3+ {[%clk 0:00:27.5]} 42. Kxf3 {[%clk 0:00:08.2]}
42... g6 {[%clk 0:00:27.7]} 43. Ke3 {[%clk 0:00:09.1]} 43... Kf8 {[%clk
0:00:27.6]} 44. Kd4 {[%clk 0:00:10]} 44... Ke7 {[%clk 0:00:28]} 45. Ke4 {[%clk
0:00:10.9]} 45... Kd7 {[%clk 0:00:28.5]} 46. Kd4 {[%clk 0:00:11.8]} 46... c5+
{[%clk 0:00:28.3]} 47. Ke4 {[%clk 0:00:12.7]} 47... b5 {[%clk 0:00:28.4]} 48.
Kd3 {[%clk 0:00:13.6]} 48... Kc7 {[%clk 0:00:28.6]} 49. Kc3 {[%clk 0:00:14.5]}
49... Kb6 {[%clk 0:00:28.9]} 50. Kb3 {[%clk 0:00:15.4]} 50... a5 {[%clk
0:00:29.4]} 51. Kc3 {[%clk 0:00:16.3]} 51... b4+ {[%clk 0:00:29.2]} 52. Kb3
{[%clk 0:00:17.2]} 52... bxa3 {[%clk 0:00:27.7]} 53. Kc3 {[%clk 0:00:18.1]}
53... Kb5 {[%clk 0:00:27.5]} 54. Kb3 {[%clk 0:00:18.4]} 54... a4+ {[%clk
0:00:27.3]} 55. Kxa3 {[%clk 0:00:19.1]} 55... Ka5 {[%clk 0:00:27.7]} 56. Kb2
{[%clk 0:00:19.7]} 56... Kb4 {[%clk 0:00:27.9]} 57. Ka2 {[%clk 0:00:19.5]} 57...
c4 {[%clk 0:00:28.2]} 58. Kb2 {[%clk 0:00:19.8]} 58... Kc5 {[%clk 0:00:28.6]}
59. Kc3 {[%clk 0:00:19.3]} 59... Kxd5 {[%clk 0:00:29.1]} 0-1

[Event "*** Titled Tuesday Blitz"]
[Site "Chess.com"]
[Date "2021.03.09"]
[Round "2"]
[White "SimplyDevina"]
[Black "Vasily85"]
[Result "1/2-1/2"]
[WhiteElo "2186"]
[BlackElo "2414"]
[TimeControl "180+1"]
[EndTime "10:19:35 PST"]
[Termination "Game drawn by repetition"]

1. d4 {[%clk 0:03:00.9]} 1... Nf6 {[%clk 0:02:59.4]} 2. c4 {[%clk 0:03:00.5]}
2... e6 {[%clk 0:02:59.7]} 3. Nc3 {[%clk 0:03:00.2]} 3... Bb4 {[%clk 0:03:00.3]}
4. e3 {[%clk 0:02:57.8]} 4... O-O {[%clk 0:03:00.3]} 5. Ne2 {[%clk 0:02:56.4]}
5... d5 {[%clk 0:02:56.7]} 6. a3 {[%clk 0:02:57]} 6... Bd6 {[%clk 0:02:55.7]} 7.
Ng3 {[%clk 0:02:54.7]} 7... c5 {[%clk 0:02:14.7]} 8. cxd5 {[%clk 0:02:27.7]}
8... exd5 {[%clk 0:02:15.6]} 9. dxc5 {[%clk 0:02:23.3]} 9... Bxc5 {[%clk
0:02:16.5]} 10. b4 {[%clk 0:02:11.9]} 10... Bb6 {[%clk 0:02:10.2]} 11. Bb2
{[%clk 0:02:11.8]} 11... d4 {[%clk 0:02:05.6]} 12. exd4 {[%clk 0:02:11.7]} 12...
Re8+ {[%clk 0:01:52.2]} 13. Be2 {[%clk 0:02:10]} 13... Nc6 {[%clk 0:01:34.1]}
14. d5 {[%clk 0:01:37]} 14... Nd4 {[%clk 0:01:09.6]} 15. O-O {[%clk 0:01:36.9]}
15... Nxd5 {[%clk 0:01:04.8]} 16. Na4 {[%clk 0:01:09.3]} 16... Nxe2+ {[%clk
0:00:58.6]} 17. Nxe2 {[%clk 0:01:10.2]} 17... Bg4 {[%clk 0:00:33.3]} 18. Nxb6
{[%clk 0:01:03.6]} 18... Bxe2 {[%clk 0:00:24.2]} 19. Qd4 {[%clk 0:01:03.1]}
19... Nf6 {[%clk 0:00:24.1]} 20. Nxa8 {[%clk 0:00:48.8]} 20... Bxf1 {[%clk
0:00:20.2]} 21. Qxd8 {[%clk 0:00:45.8]} 21... Rxd8 {[%clk 0:00:21.1]} 22. Rxf1
{[%clk 0:00:45.1]} 22... Rxa8 {[%clk 0:00:21.4]} 23. Bxf6 {[%clk 0:00:45.8]}
23... gxf6 {[%clk 0:00:21.3]} 24. Rc1 {[%clk 0:00:44.3]} 24... Rd8 {[%clk
0:00:21.4]} 25. g3 {[%clk 0:00:39.9]} 25... Rd3 {[%clk 0:00:20.9]} 26. Rc8+
{[%clk 0:00:39.5]} 26... Kg7 {[%clk 0:00:20.8]} 27. Rc7 {[%clk 0:00:40.4]} 27...
Rxa3 {[%clk 0:00:18.4]} 28. Rxb7 {[%clk 0:00:40.7]} 28... Rb3 {[%clk 0:00:18.5]}
29. b5 {[%clk 0:00:38.8]} 29... Kg6 {[%clk 0:00:17.5]} 30. Kf1 {[%clk
0:00:37.6]} 30... h5 {[%clk 0:00:17.6]} 31. Ke2 {[%clk 0:00:37.8]} 31... Kf5
{[%clk 0:00:12.9]} 32. Rxa7 {[%clk 0:00:34.8]} 32... Rxb5 {[%clk 0:00:11.1]} 33.
Rxf7 {[%clk 0:00:34.6]} 33... Rb2+ {[%clk 0:00:10]} 34. Kf3 {[%clk 0:00:33.7]}
34... Rb3+ {[%clk 0:00:10.9]} 35. Kg2 {[%clk 0:00:33.9]} 35... Kg5 {[%clk
0:00:11.5]} 36. Rf8 {[%clk 0:00:32.1]} 36... Rb5 {[%clk 0:00:11]} 37. Rg8+
{[%clk 0:00:29.7]} 37... Kf5 {[%clk 0:00:11.3]} 38. Rh8 {[%clk 0:00:30]} 38...
Kg6 {[%clk 0:00:11.7]} 39. h3 {[%clk 0:00:28.3]} 39... Rb4 {[%clk 0:00:12.1]}
40. Re8 {[%clk 0:00:28.2]} 40... Ra4 {[%clk 0:00:12]} 41. Re3 {[%clk 0:00:28.5]}
41... Rb4 {[%clk 0:00:12.3]} 42. Kf3 {[%clk 0:00:29]} 42... Ra4 {[%clk
0:00:12.7]} 43. Re4 {[%clk 0:00:26.4]} 43... Ra2 {[%clk 0:00:11.3]} 44. g4
{[%clk 0:00:23.7]} 44... hxg4+ {[%clk 0:00:11.4]} 45. hxg4 {[%clk 0:00:24.6]}
45... Kg5 {[%clk 0:00:11.2]} 46. Kg3 {[%clk 0:00:18.7]} 46... Ra3+ {[%clk
0:00:11.4]} 47. f3 {[%clk 0:00:18.8]} 47... Rb3 {[%clk 0:00:09.4]} 48. Rc4
{[%clk 0:00:18.4]} 48... Ra3 {[%clk 0:00:09.6]} 49. Rc5+ {[%clk 0:00:18.7]}
49... Kg6 {[%clk 0:00:10.2]} 50. Kf4 {[%clk 0:00:11.5]} 50... Ra4+ {[%clk
0:00:09.7]} 51. Kg3 {[%clk 0:00:11.9]} 51... Ra1 {[%clk 0:00:10.6]} 52. Kf4
{[%clk 0:00:08.2]} 52... Ra4+ {[%clk 0:00:10.4]} 53. Kg3 {[%clk 0:00:08.4]}
53... Ra3 {[%clk 0:00:11.3]} 54. Kf4 {[%clk 0:00:08.7]} 54... Ra4+ {[%clk
0:00:11.3]} 1/2-1/2